bitfinex-derivatives/quotes_ETHF0:USTF0_20250102
["timestamp","ask_amount","ask_price","bid_price","bid_amount"]
[1735839146406,0.28915,3461.0,3460.9,0.28915]
[1735839146593,41.2574,3461.1,3460.5,0.72297]
[1735839146914,40.8,3461.1,3461.0,0.28915]
[1735839148606,40.8,3461.1,3460.7,3.93073]
[1735839148607,40.8,3461.1,3460.7,3.2078]
[1735839148803,0.28915,3461.0,3460.9,0.28915]
[1735839149902,0.28917,3460.8,3460.7,3.49697]
[1735839150103,0.28916,3460.9,3460.8,0.28916]
[1735839150298,0.4597,3461.0,3460.2,4.0831]
[1735839150499,0.2892,3460.5,3460.3,0.28921]
[1735839150704,0.28919,3460.5,3460.2,0.4292]
[1735839150898,0.28919,3460.5,3460.3,0.2892]
[1735839151104,40.8,3460.4,3460.3,0.2892]
[1735839151301,0.28921,3460.3,3460.2,0.28921]
[1735839151500,40.8,3460.4,3459.9,4.52498483]
[1735839151700,40.8,3460.4,3460.3,0.28921]
[1735839160211,40.8,3460.4,3460.3,3.49701]
[1735839163810,40.8,3460.4,3460.3,3.2078]
[1735839164017,40.8,3460.4,3460.3,3.49701]
[1735839172117,0.28922,3460.2,3460.1,0.28922]
[1735839172322,0.4436,3460.3,3459.9,7.73278483]
[1735839172523,2.99480612,3460.1,3460.0,0.28923]
[1735839172721,2.70557612,3460.1,3460.0,0.28923]
[1735839172929,43.50557612,3460.1,3460.0,0.28923]
[1735839173121,41.6475,3460.1,3460.0,0.28923]
[1735839173632,41.2243,3460.1,3460.0,0.28923]
[1735839173924,43.50667612,3460.1,3459.9,3.2078]
[1735839174131,0.28923,3460.0,3459.9,3.2078]
[1735839174328,0.28923,3460.0,3459.9,3.49704]
[1735839174523,2.70667612,3460.1,3459.4,3.2078]
[1735839174724,2.28237612,3459.8,3459.4,3.2078]
[1735839175024,2.28237612,3459.8,3459.3,4.52498483]
[1735839175025,2.28237612,3459.5,3459.3,4.52498483]
[1735839175232,0.28928,3459.4,3459.3,4.52498483]
[1735839175426,0.73458,3459.4,3459.3,4.52498483]
[1735839175726,41.2453,3459.4,3459.3,0.28929]
[1735839176123,41.2453,3459.4,3459.0,8.16328483]
[1735839176428,40.8,3459.4,3459.3,0.28929]
[1735839177329,40.8,3459.4,3458.6,3.2078]
[1735839177635,0.4453,3459.3,3459.2,0.2893]
[1735839178430,40.8,3459.4,3459.3,0.28929]
[1735839180926,40.8,3459.4,3458.7,8.31498483]
[1735839180927,0.2893,3459.2,3458.7,8.31498483]
[1735839181130,0.28931,3459.1,3458.8,0.28933]
[1735839181427,3.2078,3459.2,3458.7,8.31498483]
[1735839181735,0.28931,3459.1,3458.7,4.52498483]
[1735839181928,0.28931,3459.1,3458.7,0.28933]
[1735839182129,3.4971,3459.2,3458.9,0.28932]
[1735839182336,40.8,3459.0,3458.3,6.80736095]
[1735839182528,3.2078,3458.8,3458.7,0.28934]
[1735839182835,40.8,3459.0,3458.9,0.28932]
[1735839183032,40.8,3459.0,3458.8,0.28933]
[1735839183528,41.08932,3459.0,3458.7,0.28934]
[1735839183731,3.2078,3458.8,3458.7,0.28934]
[1735839184327,3.2078,3458.8,3458.2,0.72346]
[1735839184328,3.2078,3458.8,3458.6,0.28934]
[1735839184729,0.4514,3458.7,3458.6,0.28934]
[1735839185532,0.4514,3458.7,3458.6,0.28935]
[1735839185932,3.2078,3458.8,3458.7,0.28934]
[1735839186431,40.8,3459.0,3458.9,0.28932]
[1735839186630,40.8,3459.0,3458.9,2.57169612]
[1735839187031,2.23599056,3459.6,3459.5,0.28927]
[1735839187231,2.23599056,3459.6,3458.9,3.00568612]
[1735839187435,2.23599056,3459.6,3459.5,0.28927]
[1735839187642,43.03599056,3459.6,3459.5,0.28927]
[1735839187936,40.8,3459.6,3459.5,0.28927]
[1735839188143,40.8,3459.6,3458.9,2.28237612]
[1735839188144,43.08237612,3459.6,3458.8,3.79]
[1735839188344,5.49017612,3459.3,3458.8,3.79]
[1735839188532,5.49017612,3459.3,3458.8,0.28933]
[1735839188533,3.2078,3458.9,3458.8,0.28933]
[1735839190138,3.2078,3458.9,3458.4,0.9193]
[1735839190336,0.28935,3458.6,3458.5,0.28935]
[1735839190655,0.28934,3458.7,3458.6,0.28935]
[1735839190832,0.28934,3458.7,3458.1,1.57507]
[1735839190833,3.2078,3458.9,3458.1,0.8516]
[1735839191035,0.28934,3458.8,3458.6,0.28934]
[1735839191539,0.28934,3458.7,3458.5,0.28935]
[1735839191842,0.28935,3458.7,3458.5,0.28936]
[1735839192043,0.28935,3458.7,3458.5,0.28935]
[1735839192240,3.2078,3458.9,3458.5,0.28935]
[1735839192434,2.28237612,3458.7,3458.0,3.2078]
[1735839192643,0.28939,3458.1,3457.7,0.4335]
[1735839192835,2.28237612,3458.3,3457.6,0.4264]
[1735839193037,3.2078,3458.1,3457.6,1.58348]
[1735839193242,40.8,3458.0,3457.9,0.2894]
[1735839195636,3.2078,3458.1,3458.0,0.2894]
[1735839195842,5.49017612,3458.6,3458.0,0.7235]
[1735839196041,5.77953612,3458.6,3458.0,0.7235]
[1735839196239,40.8,3458.5,3458.4,0.28937]
[1735839197941,3.2078,3458.6,3458.5,0.28936]
[1735839198335,44.0078,3458.6,3458.5,0.28936]
[1735839198537,0.28931,3459.1,3458.4,2.28237612]
[1735839198538,3.2078,3459.1,3458.4,6.07237612]
[1735839198740,3.2078,3459.1,3459.0,0.28932]
[1735839199141,44.0078,3459.1,3459.0,0.28932]
[1735839200941,44.0078,3459.1,3458.8,0.4534]
[1735839201146,44.29711,3459.1,3458.9,0.28932]
[1735839201843,44.0078,3459.1,3459.0,0.28932]
[1735839203644,3.2078,3459.5,3458.8,0.4534]
[1735839203844,3.2078,3459.5,3459.4,0.28928]
[1735839204146,40.8,3459.5,3459.4,0.28928]
[1735839204338,3.2078,3460.0,3459.4,5.0]
[1735839204647,3.2078,3460.0,3459.9,0.28924]
[1735839204849,0.28926,3459.8,3459.5,0.4329]
[1735839205038,3.2078,3460.0,3459.5,0.4329]
[1735839205247,0.28926,3459.7,3459.4,3.79]
[1735839205542,0.4356,3459.9,3459.5,0.28927]
[1735839205543,44.0078,3459.6,3459.5,0.28927]
[1735839206141,44.0078,3459.6,3459.4,3.79]
[1735839206547,44.4472,3459.6,3459.4,3.79]
[1735839206750,44.73647,3459.6,3459.4,4.07928]
[1735839206941,44.73647,3459.6,3459.5,0.28927]
[1735839206942,44.0078,3459.6,3459.5,0.28927]
[1735839207844,40.8,3459.6,3459.5,2.57164612]
[1735839208443,40.8,3459.6,3459.5,0.28927]
[1735839209543,44.0078,3459.6,3459.4,3.79]
[1735839209744,0.9071,3459.5,3459.4,4.07928]
[1735839209947,0.9071,3459.5,3459.4,3.79]
[1735839210349,0.9071,3459.5,3458.7,4.52498483]
[1735839210350,3.18947612,3459.5,3458.7,4.52498483]
[1735839210544,3.2078,3459.2,3459.1,0.28931]
[1735839210744,44.0078,3459.2,3459.1,0.28931]
[1735839213445,44.0078,3459.2,3458.8,0.4287]
[1735839213641,44.0078,3459.2,3458.2,4.52498483]
[1735839213642,0.28933,3458.8,3458.2,4.52498483]
[1735839213849,3.2078,3458.6,3458.2,4.52498483]
[1735839214051,3.2078,3458.6,3458.4,0.28936]
[1735839214246,3.2078,3458.6,3458.3,4.52498483]
[1735839214549,0.28937,3458.4,3458.3,4.52498483]
[1735839214750,0.28937,3458.4,3457.7,0.28942]
[1735839214751,1.219,3458.4,3457.7,0.28942]
[1735839214953,3.2078,3458.0,3457.7,0.28942]
[1735839215250,0.28942,3457.7,3457.6,4.52498483]
[1735839215446,0.4318,3457.9,3457.6,4.52498483]
[1735839215648,0.28942,3457.8,3457.6,4.52498483]
[1735839215845,40.8,3457.7,3457.6,4.52498483]
[1735839216246,40.8,3457.7,3457.4,7.67773034]
[1735839216247,0.28944,3457.5,3457.4,7.67773034]
[1735839216546,3.49724,3457.5,3457.4,0.91905427]
[1735839216852,44.0078,3457.5,3456.6,6.75867607]
[1735839217053,3.4973,3456.9,3456.6,7.04818607]
[1735839217262,3.2078,3456.9,3456.8,0.2895]
[1735839217558,3.2078,3456.9,3456.6,0.28951]
[1735839217559,0.2895,3456.8,3456.6,0.28951]
[1735839217852,3.2078,3456.9,3456.4,2.28237612]
[1735839218154,3.2078,3456.9,3456.3,0.4567]
[1735839218451,0.28951,3456.7,3456.6,0.03944896]
[1735839219142,41.08951,3456.7,3456.6,0.03944896]
[1735839220554,41.08951,3456.7,3455.6,0.72399]
[1735839220555,0.28957,3456.0,3455.6,0.28959]
[1735839220751,0.28957,3456.0,3455.4,7.51518607]
[1735839220752,0.28959,3455.8,3455.4,7.51518607]
[1735839221049,0.28958,3455.9,3455.5,0.28961]
[1735839221355,0.28957,3455.9,3455.4,7.51518607]
[1735839221555,3.2078,3456.0,3455.3,3.2078]
[1735839221556,0.28959,3455.8,3455.3,3.2078]
[1735839221750,4.4858,3456.0,3455.5,0.2896]
[1735839221751,3.2078,3455.6,3455.5,0.2896]
[1735839221954,3.2078,3455.6,3455.2,0.4284]
[1735839222250,2.73554116,3455.5,3454.9,6.75867607]
[1735839222452,40.8,3455.1,3454.9,6.75867607]
[1735839223255,40.8,3455.1,3454.4,5.94334116]
[1735839223648,40.8,3455.1,3455.0,0.28965]
[1735839224257,3.2078,3455.2,3454.8,2.73554116]
[1735839224444,3.2078,3455.2,3454.9,0.4547]
[1735839224848,3.2078,3455.2,3455.1,0.28964]
[1735839225159,3.2078,3455.2,3454.4,5.94334116]
[1735839225160,3.49744,3455.2,3454.4,5.94334116]
[1735839225357,0.28965,3455.1,3454.6,0.28968]
[1735839225556,0.28965,3455.1,3454.4,5.94334116]
[1735839225557,0.28965,3455.0,3454.5,0.28969]
[1735839225761,43.53554116,3455.1,3454.4,3.2078]
[1735839225762,0.28966,3454.9,3454.4,3.4975]
[1735839225962,0.28965,3455.0,3454.5,0.28969]
[1735839226256,3.2078,3454.7,3454.4,0.2897]
[1735839226460,3.2078,3454.7,3454.5,0.28969]
[1735839226761,3.2078,3454.7,3454.6,0.03944896]
[1735839228562,3.2078,3454.7,3454.6,0.32912896]
[1735839228757,3.2078,3454.7,3454.6,0.03944896]
[1735839228962,3.2078,3454.7,3454.6,0.32912896]
[1735839229763,3.49748,3454.7,3454.6,0.03944896]
[1735839230466,44.29748,3454.7,3454.6,0.03944896]
[1735839230755,44.0078,3454.7,3454.6,0.03944896]
[1735839230957,44.0078,3454.7,3454.6,0.32912896]
[1735839231558,3.2078,3455.3,3455.2,0.28963]
[1735839231864,3.49743,3455.3,3455.2,0.03944896]
[1735839232057,44.0078,3455.3,3455.2,0.32907896]
[1735839233061,44.0078,3455.3,3455.2,0.03944896]
[1735839233456,44.29743,3455.3,3455.2,0.03944896]
[1735839233656,44.0078,3455.3,3455.2,0.03944896]
[1735839234061,44.29743,3455.3,3455.2,0.03944896]
[1735839234562,44.29743,3455.3,3454.1,0.4206]
[1735839234563,49.0078,3455.3,3454.1,0.4206]
[1735839234761,3.2078,3454.8,3454.1,0.4206]
[1735839234958,3.2078,3454.8,3453.7,3.2078]
[1735839235150,3.2078,3454.4,3453.7,3.2078]
[1735839235660,3.2078,3454.8,3454.7,0.28967]
[1735839235867,44.0078,3455.3,3454.5,3.2078]
[1735839236161,44.29743,3455.3,3455.0,0.28965]
[1735839236363,44.0078,3455.3,3455.2,0.28963]
[1735839236763,40.8,3455.3,3455.2,0.28963]
[1735839236958,40.8,3455.3,3455.2,3.02517116]
[1735839237255,40.8,3455.3,3455.2,3.06462012]
[1735839239057,40.8,3455.3,3455.2,8.06462012]
[1735839239259,3.2078,3456.4,3455.3,0.72407]
[1735839239562,3.2078,3456.4,3455.4,0.4622]
[1735839239778,3.2078,3456.4,3456.3,0.28954]
[1735839240064,3.2078,3456.4,3455.6,2.73554116]
[1735839240359,3.2078,3456.4,3455.4,0.9276]
[1735839240360,44.29736,3456.1,3456.0,0.03944896]
[1735839240572,44.0078,3456.1,3456.0,0.03944896]
[1735839240862,44.29736,3456.1,3456.0,0.03944896]
[1735839241258,44.0078,3456.1,3456.0,0.32901896]
[1735839242658,44.29736,3456.1,3456.0,0.03944896]
[1735839243258,45.57636,3456.1,3456.0,0.03944896]
[1735839243868,0.72396,3455.9,3454.7,0.4345]
[1735839244061,3.2078,3455.1,3454.9,0.4337]
[1735839244364,3.2078,3455.5,3454.9,0.4337]
[1735839244560,3.49742,3455.5,3454.9,0.4337]
[1735839244769,3.2078,3455.5,3454.9,0.4337]
[1735839244960,3.2078,3455.5,3455.4,0.28962]
[1735839245561,44.0078,3455.5,3455.4,0.28962]
[1735839245764,44.29741,3455.5,3455.4,0.28962]
[1735839245966,44.0078,3455.5,3455.4,0.28962]
[1735839247073,40.8,3455.5,3455.4,0.28962]
[1735839250060,40.8,3455.5,3455.4,0.32906896]
[1735839250577,41.08961,3455.5,3455.4,0.03944896]
[1735839251470,43.82687809,3455.5,3455.4,0.03944896]
[1735839251672,43.53726809,3455.5,3454.2,0.7243]
[1735839251970,0.28965,3455.0,3454.3,0.72428]
[1735839252273,3.49745,3455.1,3454.9,0.28966]
[1735839252464,3.46129809,3455.5,3454.9,0.28966]
[1735839252465,40.8,3455.0,3454.9,0.28966]
[1735839254372,40.8,3455.0,3454.8,0.4519]
[1735839254574,40.8,3455.0,3454.1,7.7221]
[1735839254575,40.8,3455.0,3454.1,3.2078]
[1735839254772,0.28969,3454.6,3454.4,0.2897]
[1735839254965,3.2078,3454.7,3454.2,0.8862]
[1735839255170,3.2078,3454.3,3454.2,0.74162]
[1735839255573,3.2078,3454.3,3454.2,0.78106896]
[1735839255869,44.0078,3454.3,3454.2,0.03944896]
[1735839256077,40.8,3454.3,3454.2,0.32916896]
[1735839256468,3.2078,3455.1,3454.2,0.03944896]
[1735839256668,3.2078,3455.1,3454.8,0.28966]
[1735839256868,3.2078,3455.1,3454.3,0.28971]
[1735839257172,40.8,3455.0,3454.2,0.03944896]
[1735839257377,41.08965,3455.0,3454.7,0.28967]
[1735839257579,41.08965,3455.0,3454.8,0.32911896]
[1735839257774,40.8,3455.0,3454.9,0.28966]
[1735839258577,40.8,3455.0,3454.9,0.03944896]
[1735839258578,41.08965,3455.0,3454.9,0.03944896]
[1735839258874,41.08965,3455.0,3454.9,0.32910896]
[1735839258875,40.8,3455.0,3454.9,0.32910896]
[1735839260975,40.8,3455.0,3454.9,0.03944896]
[1735839260976,41.08965,3455.0,3454.9,0.03944896]
[1735839261175,0.28967,3454.9,3454.6,0.28968]
[1735839261472,40.8,3455.0,3454.9,0.28966]
[1735839262378,40.8,3455.0,3454.5,0.4587]
[1735839262574,40.8,3455.0,3454.8,0.28966]
[1735839262772,40.8,3455.0,3454.6,0.28968]
[1735839262977,41.08965,3455.0,3454.6,0.28968]
[1735839263182,0.28966,3454.9,3454.6,0.28968]
[1735839263382,0.28966,3454.9,3454.5,0.74839]
[1735839263584,5.94506809,3455.1,3454.5,0.74839]
[1735839264082,40.8,3454.8,3454.6,0.28968]
[1735839264282,40.8,3454.8,3454.5,0.4587]
[1735839264580,40.8,3454.8,3454.5,0.74839]
[1735839264879,40.8,3454.8,3454.5,0.4587]
[1735839265082,0.2897,3454.5,3454.2,0.73661]
[1735839265278,3.6542,3454.7,3454.0,0.4461]
[1735839265575,0.28969,3454.5,3454.2,0.28972]
[1735839265781,0.28969,3454.6,3454.0,0.4461]
[1735839265981,0.2897,3454.5,3454.2,0.28971]
[1735839266181,0.28971,3454.4,3454.1,0.28972]
[1735839266375,0.28971,3454.3,3454.0,0.73583]
[1735839266674,3.2078,3454.3,3453.9,0.4212]
[1735839266872,3.2078,3454.3,3454.2,0.28972]
[1735839267784,3.2078,3454.3,3454.1,0.28972]
[1735839267982,3.2078,3454.3,3453.9,0.4212]
[1735839268383,0.28972,3454.2,3453.9,0.4212]
[1735839268580,3.2078,3454.3,3454.1,0.28972]
[1735839268780,3.2078,3454.3,3453.9,0.4212]
[1735839268981,3.2078,3454.3,3454.2,0.28972]
[1735839269183,3.2078,3454.3,3453.9,0.4212]
[1735839269380,3.2078,3454.3,3454.1,0.28972]
[1735839269874,3.2078,3454.3,3453.9,0.4212]
[1735839270083,3.2078,3454.3,3454.2,0.28972]
[1735839270485,0.4464,3454.7,3454.5,0.28969]
[1735839270680,0.73608,3454.7,3454.4,0.28969]
[1735839270890,0.73608,3454.7,3454.4,0.2897]
[1735839271187,46.24379056,3454.8,3454.0,2.29147458]
[1735839271376,44.0078,3454.8,3454.1,0.72432]
[1735839271576,44.0078,3454.8,3454.7,0.28968]
[1735839272682,40.8,3454.8,3454.7,0.28968]
[1735839272879,40.8,3454.8,3454.7,3.49748]
[1735839273082,2.23599056,3455.3,3455.2,0.28963]
[1735839274184,40.8,3455.3,3455.2,0.28963]
[1735839275689,40.8,3455.3,3455.2,0.73343]
[1735839278488,40.8,3455.3,3455.2,0.28963]
[1735839280186,41.08963,3455.3,3455.0,0.28964]
[1735839280494,0.28963,3455.3,3454.7,7.64097607]
[1735839280693,5.49927458,3455.4,3454.7,7.64097607]
[1735839280694,5.49927458,3455.4,3454.7,0.8823]
[1735839280896,5.49927458,3455.4,3454.7,0.28967]
[1735839280897,40.8,3454.8,3454.7,0.28967]
[1735839281394,41.08967,3454.8,3454.6,6.75867607]
[1735839281689,40.8,3454.8,3454.7,0.28967]
[1735839283191,40.8,3454.8,3453.7,7.94907607]
[1735839283391,3.49749,3454.6,3453.8,3.44664458]
[1735839283596,3.49749,3454.6,3454.3,0.2897]
[1735839283797,3.49749,3454.6,3454.4,0.2897]
[1735839283996,3.2078,3454.6,3453.8,3.15397458]
[1735839284298,3.2078,3454.6,3454.5,0.28969]
[1735839284791,40.8,3454.8,3454.7,0.28967]
[1735839285099,2.23599056,3455.0,3454.9,0.28966]
[1735839285290,1.53589056,3455.0,3454.9,0.28966]
[1735839285698,0.13569056,3455.0,3454.9,0.28966]
[1735839285899,3.35716718,3455.2,3454.9,0.28966]
[1735839285900,3.35716718,3455.2,3455.1,0.28964]
[1735839286098,3.35716718,3455.2,3455.1,5.78891458]
[1735839286397,4.48036179,3455.4,3455.1,5.78891458]
[1735839286398,40.8,3455.4,3455.1,5.94430667]
[1735839286597,40.8,3455.4,3455.3,0.28962]
[1735839288493,40.8,3455.4,3455.3,9.07962]
[1735839288693,3.2078,3456.6,3456.5,0.28952]
[1735839288991,3.81476718,3456.7,3456.6,0.28951]
[1735839289403,3.35716718,3456.7,3456.6,0.28951]
[1735839289695,44.15716718,3456.7,3456.6,0.28951]
[1735839290293,40.8,3456.7,3455.8,10.69042607]
[1735839290597,3.49733,3456.5,3456.2,0.28955]
[1735839291001,3.2078,3456.5,3456.3,0.28953]
[1735839291196,3.2078,3456.5,3455.8,9.96647607]
[1735839291497,43.53650667,3456.7,3456.6,0.28951]
[1735839291498,40.8,3456.7,3456.6,0.28951]
[1735839292992,44.0078,3456.7,3456.0,0.72392]
[1735839293495,3.2078,3456.3,3455.8,3.2078]
[1735839293691,0.4385,3456.2,3456.1,0.28956]
[1735839294088,3.2078,3456.8,3455.8,3.2078]
[1735839294291,0.4385,3456.6,3456.5,0.28952]
[1735839295790,40.8,3456.6,3456.5,0.28952]
[1735839298201,40.8,3456.6,3456.0,0.28956]
[1735839298501,40.8,3456.6,3456.4,0.28953]
[1735839298502,0.4283,3456.5,3456.4,0.28953]
[1735839301004,40.8,3456.6,3455.9,2.73650667]
[1735839301212,40.8,3456.6,3456.5,0.28952]
[1735839302400,3.2078,3457.2,3456.4,0.8926]
[1735839302599,3.2078,3457.2,3457.1,0.28947]
[1735839302799,44.0078,3457.2,3457.1,0.28947]
[1735839302997,44.29727,3457.2,3456.5,0.72381]
[1735839303204,44.0078,3457.2,3457.1,0.28947]
[1735839303403,0.28947,3457.1,3456.9,0.28949]
[1735839303601,44.0078,3457.2,3456.3,0.72386]
[1735839303807,44.0078,3457.2,3457.1,0.28947]
[1735839304610,40.8,3457.2,3457.1,0.28947]
[1735839304904,40.8,3457.2,3457.1,3.02597667]
[1735839305300,40.8,3457.2,3457.1,0.28947]
[1735839306312,44.0078,3457.2,3456.8,0.28949]
[1735839306502,0.42,3457.1,3456.9,0.28948]
[1735839306699,0.42,3457.1,3456.5,0.72381]
[1735839307014,0.42,3457.1,3456.4,3.2078]
[1735839307015,44.0078,3457.2,3457.1,0.28947]
[1735839307505,40.8,3457.2,3457.1,0.28947]
[1735839307707,44.0078,3457.2,3456.4,3.93163]
[1735839307911,3.2078,3457.2,3456.4,3.2078]
[1735839308212,3.2078,3457.2,3456.8,0.28949]
[1735839308404,40.8,3456.9,3456.8,0.2895]
[1735839309710,40.8,3456.9,3456.3,0.72384]
[1735839309711,40.8,3456.9,3456.7,0.2895]
[1735839310015,3.2078,3456.8,3456.6,0.28951]
[1735839310309,3.2078,3456.8,3456.0,0.72392]
[1735839310310,0.28951,3456.6,3456.0,0.72392]
[1735839310506,0.4617,3456.5,3456.4,0.28953]
[1735839310807,0.4617,3456.5,3455.8,0.9068]
[1735839310808,1.18062,3456.5,3456.3,0.28954]
[1735839311008,0.8911,3456.5,3455.8,0.9068]
[1735839311206,40.8,3456.4,3456.3,0.28954]
[1735839311908,44.0078,3456.4,3455.1,12.52476607]
[1735839312112,3.2078,3455.6,3455.5,0.28961]
[1735839312812,44.0078,3455.6,3455.5,0.28961]
[1735839313012,40.8,3455.6,3455.5,0.28961]
[1735839315110,0.28961,3455.5,3455.2,0.28963]
[1735839315418,0.8661,3455.5,3455.3,0.28962]
[1735839315616,0.8661,3455.5,3455.2,0.28963]
[1735839315617,1.15571,3455.5,3455.2,0.28963]
[1735839315808,0.8661,3455.5,3455.3,0.28962]
[1735839316010,0.8661,3455.5,3455.0,0.00186042]
[1735839316411,3.49743,3455.3,3455.0,0.29150042]
[1735839316614,1.15571,3455.5,3455.2,0.28963]
[1735839316807,1.15571,3455.5,3455.1,0.28963]
[1735839317010,0.8661,3455.5,3455.0,0.00186042]
[1735839317212,1.15571,3455.5,3455.2,0.28963]
[1735839317409,0.28962,3455.4,3455.1,0.28964]
[1735839317717,1.15571,3455.5,3455.0,0.00186042]
[1735839317918,1.15571,3455.5,3455.1,0.28963]
[1735839318117,1.15571,3455.5,3455.2,0.28963]
[1735839318414,40.8,3455.3,3455.2,0.28963]
[1735839318817,40.8,3455.3,3455.2,3.02613667]
[1735839319215,3.2078,3456.1,3455.2,2.73650667]
[1735839319420,3.2078,3456.1,3455.5,0.28961]
[1735839319713,3.2078,3456.1,3455.9,0.28957]
[1735839319714,40.8,3456.0,3455.9,0.28957]
[1735839324121,3.35716718,3457.6,3456.1,2.46121]
[1735839324337,3.35716718,3457.6,3456.9,0.72373]
[1735839324622,3.35716718,3457.6,3457.5,0.28944]
[1735839325127,44.15716718,3457.6,3457.5,0.28944]
[1735839325520,3.35716718,3457.6,3457.5,0.28944]
[1735839326019,44.15716718,3457.6,3457.5,5.28944]
[1735839326415,0.461,3458.4,3457.5,8.79]
[1735839326626,0.461,3458.4,3458.3,0.28937]
[1735839326820,41.261,3458.4,3458.3,0.28937]
[1735839327319,40.8,3458.4,3458.3,0.28937]
[1735839330425,40.8,3458.4,3457.8,3.79]
[1735839330622,3.2078,3458.1,3458.0,0.2894]
[1735839331328,44.0078,3458.1,3458.0,0.2894]
[1735839333637,44.0078,3458.1,3457.8,3.79]
[1735839333824,0.8606,3458.0,3457.8,4.07941]
[1735839334225,0.8606,3458.0,3457.8,3.79]
[1735839334431,0.28941,3457.9,3457.8,3.79]
[1735839334634,0.73951,3457.9,3457.8,3.79]
[1735839334936,0.4501,3457.9,3457.8,3.79]
[1735839335124,41.2501,3457.9,3457.8,3.79]
[1735839335525,41.2501,3457.9,3457.7,0.28942]
[1735839335526,41.53951,3457.9,3457.5,0.28944]
[1735839335734,3.2078,3457.6,3457.5,0.28944]
[1735839336035,3.2078,3457.6,3457.4,0.28944]
[1735839336335,3.49723,3457.6,3457.4,0.28944]
[1735839336725,3.49723,3457.6,3456.5,0.8909]
[1735839336726,0.28946,3457.3,3456.5,1.61471]
[1735839336924,0.28946,3457.3,3456.6,0.72379]
[1735839337136,0.28948,3457.1,3456.9,0.28948]
[1735839337334,0.28948,3457.1,3456.5,0.8909]
[1735839337335,0.28947,3457.1,3456.8,0.28949]
[1735839337633,0.28947,3457.1,3456.5,0.4506]
[1735839337634,0.28948,3457.1,3456.5,0.4506]
[1735839337833,3.2078,3457.2,3456.9,0.28948]
[1735839338034,3.2078,3457.2,3456.8,0.2895]
[1735839338237,0.28947,3457.1,3456.8,0.2895]
[1735839338435,0.28948,3457.0,3456.8,0.2895]
[1735839338631,0.71468,3457.1,3456.5,0.4506]
[1735839338833,0.71468,3457.1,3456.9,0.28949]
[1735839339034,0.28948,3457.0,3456.8,0.2895]
[1735839339230,0.71468,3457.1,3456.5,0.4506]
[1735839339625,0.71468,3457.1,3456.9,0.28948]
[1735839339833,0.71468,3457.1,3456.8,0.28949]
[1735839340236,0.71468,3457.1,3456.5,0.4506]
[1735839340237,0.4252,3457.1,3456.5,0.4506]
[1735839340535,0.71468,3457.1,3456.5,0.4506]
[1735839340726,0.4252,3457.1,3456.5,0.4506]
[1735839340932,3.2078,3456.8,3456.1,2.73650667]
[1735839341134,0.28951,3456.7,3456.5,0.28952]
[1735839341541,3.2078,3456.8,3456.1,0.28955]
[1735839341542,0.28954,3456.4,3456.1,0.28955]
[1735839341739,0.28954,3456.4,3456.0,0.431]
[1735839341740,0.28955,3456.2,3456.0,0.28956]
[1735839342836,3.2078,3456.3,3456.2,0.28955]
[1735839343039,0.28955,3456.2,3455.6,5.94430667]
[1735839343232,3.2078,3456.3,3456.0,0.28956]
[1735839343233,3.6576,3456.3,3456.0,0.28956]
[1735839343428,0.28955,3456.2,3456.0,0.28956]
[1735839343837,3.6576,3456.3,3455.6,3.2078]
[1735839344036,3.94715,3456.3,3455.6,0.724]
[1735839344242,3.6576,3456.3,3455.4,0.431]
[1735839344538,3.94714,3456.3,3456.1,0.28955]
[1735839344736,0.28956,3456.1,3455.9,0.28957]
[1735839345040,3.94714,3456.3,3456.1,0.28955]
[1735839345232,3.6576,3456.3,3456.2,0.28955]
[1735839345637,3.2078,3456.3,3456.2,0.28955]
[1735839346035,3.2078,3456.3,3455.5,5.94430667]
[1735839346229,3.2078,3456.3,3456.0,0.28956]
[1735839346230,0.28955,3456.2,3456.0,0.28956]
[1735839346739,3.49734,3456.3,3456.1,0.28955]
[1735839347133,0.28955,3456.2,3456.0,0.28956]
[1735839347841,40.8,3456.1,3456.0,0.28956]
[1735839351039,3.49734,3456.3,3455.5,5.94430667]
[1735839351248,3.49734,3456.3,3456.2,0.28955]
[1735839351249,3.2078,3456.3,3456.2,0.28955]
[1735839351437,3.49734,3456.3,3456.2,0.28955]
[1735839351742,44.0078,3456.3,3455.6,0.724]
[1735839352143,0.28956,3456.1,3455.9,0.28957]
[1735839352341,0.28955,3456.2,3455.5,3.01277549]
[1735839352543,44.0078,3456.3,3455.8,2.28875549]
[1735839352743,44.0078,3456.3,3456.2,0.28955]
[1735839352943,44.29734,3456.3,3456.2,0.28955]
[1735839353436,44.29734,3456.3,3455.8,2.28875549]
[1735839353634,44.29734,3456.3,3456.1,0.28955]
[1735839354041,44.29734,3456.3,3455.8,2.28875549]
[1735839354240,0.28955,3456.2,3455.9,0.28956]
[1735839354440,44.29735,3456.3,3456.0,0.28956]
[1735839354744,44.0078,3456.3,3456.1,0.28955]
[1735839354941,44.0078,3456.3,3455.8,2.28875549]
[1735839355145,44.0078,3456.3,3455.5,2.28875549]
[1735839355347,0.28956,3456.1,3455.7,0.28959]
[1735839355547,0.28958,3455.8,3455.5,0.2896]
[1735839355748,0.28958,3455.8,3455.2,3.20735549]
[1735839355749,0.28959,3455.8,3455.2,3.20735549]
[1735839355938,3.2078,3455.9,3455.2,0.9186]
[1735839356144,5.49655549,3455.9,3455.2,0.9186]
[1735839356346,0.28961,3455.5,3455.2,0.75173]
[1735839356647,5.49655549,3455.9,3455.2,0.4621]